[Event "*** Titled Tuesday Blitz"]
[Site "Chess.com"]
[Date "2020.11.10"]
[Round "11"]
[White "grandcoach"]
[Black "politeplayer"]
[Result "0-1"]
[WhiteElo "2103"]
[BlackElo "2239"]
[TimeControl "180+1"]
[EndTime "12:11:38 PST"]
[Termination "politeplayer won by checkmate"]

1. e4 {[%clk 0:03:00.9]} 1... c5 {[%clk 0:02:58]} 2. b4 {[%clk 0:02:59.8]} 2...
cxb4 {[%clk 0:02:56.7]} 3. a3 {[%clk 0:03:00.2]} 3... g6 {[%clk 0:02:46.6]} 4.
Bb2 {[%clk 0:02:56.7]} 4... Nf6 {[%clk 0:02:37.4]} 5. e5 {[%clk 0:02:56.1]} 5...
Nd5 {[%clk 0:02:36.8]} 6. e6 {[%clk 0:02:50.5]} 6... Nf6 {[%clk 0:02:25.1]} 7.
exf7+ {[%clk 0:02:47.7]} 7... Kxf7 {[%clk 0:02:25]} 8. Nf3 {[%clk 0:02:44.1]}
8... Nc6 {[%clk 0:02:20.9]} 9. Bd3 {[%clk 0:02:20.1]} 9... Bh6 {[%clk
0:02:09.1]} 10. h4 {[%clk 0:02:18.3]} 10... d6 {[%clk 0:02:02.7]} 11. h5 {[%clk
0:02:11.8]} 11... Bg4 {[%clk 0:01:57.3]} 12. hxg6+ {[%clk 0:01:33.7]} 12... hxg6
{[%clk 0:01:56.3]} 13. Qe2 {[%clk 0:01:27.4]} 13... Bxd2+ {[%clk 0:01:55.8]} 14.
Kxd2 {[%clk 0:01:15.8]} 14... Rxh1 {[%clk 0:01:55.1]} 15. Bc4+ {[%clk
0:00:34.6]} 15... d5 {[%clk 0:01:50.1]} 16. Bd3 {[%clk 0:00:28.4]} 16... Ne4+
{[%clk 0:01:43.6]} 17. Ke3 {[%clk 0:00:17.9]} 17... Qb6+ {[%clk 0:01:36.2]} 18.
Kf4 {[%clk 0:00:13.1]} 18... Bxf3 {[%clk 0:01:16.8]} 19. Qxf3 {[%clk 0:00:12.3]}
19... Rh4+ {[%clk 0:01:17.1]} 20. g4 {[%clk 0:00:09.3]} 20... g5+ {[%clk
0:00:57.1]} 21. Kf5 {[%clk 0:00:04.5]} 21... Nd4+ {[%clk 0:00:55.2]} 22. Bxd4
{[%clk 0:00:03.5]} 22... Qe6# {[%clk 0:00:53.7]} 0-1

[Event "*** Titled Tuesday Blitz"]
[Site "Chess.com"]
[Date "2020.11.10"]
[Round "11"]
[White "ajdemipopushi"]
[Black "Shushik"]
[Result "0-1"]
[WhiteElo "2382"]
[BlackElo "2259"]
[TimeControl "180+1"]
[EndTime "12:11:42 PST"]
[Termination "Shushik won on time"]

1. Nf3 {[%clk 0:02:56.1]} 1... d5 {[%clk 0:02:59.3]} 2. g3 {[%clk 0:02:55.6]}
2... c6 {[%clk 0:02:56.1]} 3. c4 {[%clk 0:02:54.9]} 3... Bg4 {[%clk 0:02:54.2]}
4. Ne5 {[%clk 0:02:49.8]} 4... Bf5 {[%clk 0:02:53]} 5. Bg2 {[%clk 0:02:48.9]}
5... Nf6 {[%clk 0:02:51.5]} 6. cxd5 {[%clk 0:02:47.9]} 6... cxd5 {[%clk
0:02:45.5]} 7. Qa4+ {[%clk 0:02:47.2]} 7... Nbd7 {[%clk 0:02:41.8]} 8. Nc3
{[%clk 0:02:46.8]} 8... e6 {[%clk 0:02:39.5]} 9. g4 {[%clk 0:02:46.4]} 9... Bc2
{[%clk 0:02:28.5]} 10. b3 {[%clk 0:02:03.5]} 10... Bd6 {[%clk 0:02:21.9]} 11.
Nxd7 {[%clk 0:01:57.7]} 11... Nxd7 {[%clk 0:02:21.9]} 12. d3 {[%clk 0:01:33.5]}
12... Rc8 {[%clk 0:02:19.3]} 13. Bd2 {[%clk 0:01:30.2]} 13... O-O {[%clk
0:02:12.3]} 14. Rc1 {[%clk 0:01:28.2]} 14... Nc5 {[%clk 0:02:12.3]} 15. Qd4
{[%clk 0:00:32]} 15... Bxb3 {[%clk 0:02:10.5]} 16. Nb5 {[%clk 0:00:23.1]} 16...
Ba4 {[%clk 0:01:49.9]} 17. Nxd6 {[%clk 0:00:20.1]} 17... Qxd6 {[%clk 0:01:49.9]}
18. Rxc5 {[%clk 0:00:18.9]} 18... Rxc5 {[%clk 0:01:48]} 19. Qxa4 {[%clk
0:00:18.7]} 19... b5 {[%clk 0:01:45.1]} 20. Qb3 {[%clk 0:00:15.8]} 20... Rfc8
{[%clk 0:01:43.3]} 21. O-O {[%clk 0:00:15.5]} 21... Rc2 {[%clk 0:01:34.6]} 22.
Rd1 {[%clk 0:00:14.4]} 22... Qa6 {[%clk 0:01:21.6]} 23. a3 {[%clk 0:00:10.3]}
23... Qa4 {[%clk 0:01:20.8]} 24. Qxa4 {[%clk 0:00:09.9]} 24... bxa4 {[%clk
0:01:20.8]} 25. Bf3 {[%clk 0:00:09.9]} 25... Ra2 {[%clk 0:01:17.3]} 26. Bb4
{[%clk 0:00:09.7]} 26... a5 {[%clk 0:01:14.6]} 27. Bd6 {[%clk 0:00:05.8]} 27...
Rac2 {[%clk 0:01:13.3]} 28. Kg2 {[%clk 0:00:02.9]} 28... Rc1 {[%clk 0:01:11.8]}
0-1

[Event "*** Titled Tuesday Blitz"]
[Site "Chess.com"]
[Date "2020.11.10"]
[Round "11"]
[White "Vamostodorecto"]
[Black "Crazy_girl99"]
[Result "0-1"]
[WhiteElo "2377"]
[BlackElo "2503"]
[TimeControl "180+1"]
[EndTime "12:11:44 PST"]
[Termination "Crazy_girl99 won by resignation"]

1. d4 {[%clk 0:03:00.9]} 1... d5 {[%clk 0:02:59.8]} 2. c4 {[%clk 0:02:57]} 2...
c6 {[%clk 0:02:59.8]} 3. Nf3 {[%clk 0:02:56.7]} 3... Nf6 {[%clk 0:03:00]} 4. Nc3
{[%clk 0:02:57.3]} 4... g6 {[%clk 0:02:59.6]} 5. e3 {[%clk 0:02:57.9]} 5... Bg7
{[%clk 0:02:59.7]} 6. Bd3 {[%clk 0:02:54.9]} 6... O-O {[%clk 0:02:59.7]} 7. O-O
{[%clk 0:02:55.6]} 7... e6 {[%clk 0:02:57.4]} 8. b3 {[%clk 0:02:53.7]} 8... b6
{[%clk 0:02:57.6]} 9. Bb2 {[%clk 0:02:53.8]} 9... Nbd7 {[%clk 0:02:58.2]} 10.
Qe2 {[%clk 0:02:52.9]} 10... Bb7 {[%clk 0:02:58.6]} 11. e4 {[%clk 0:02:51]}
11... dxe4 {[%clk 0:02:58.2]} 12. Nxe4 {[%clk 0:02:51.9]} 12... Nxe4 {[%clk
0:02:58.6]} 13. Qxe4 {[%clk 0:02:48.9]} 13... Qc7 {[%clk 0:02:53.7]} 14. Rad1
{[%clk 0:02:41.8]} 14... c5 {[%clk 0:02:48.1]} 15. Qe3 {[%clk 0:02:37]} 15...
Rad8 {[%clk 0:02:45.1]} 16. Be4 {[%clk 0:02:33.1]} 16... Bxe4 {[%clk 0:02:38.1]}
17. Qxe4 {[%clk 0:02:34]} 17... Rfe8 {[%clk 0:02:37.6]} 18. Rd2 {[%clk
0:02:28.8]} 18... f5 {[%clk 0:02:28.1]} 19. Qh4 {[%clk 0:02:26.7]} 19... cxd4
{[%clk 0:02:25.2]} 20. Nxd4 {[%clk 0:02:16.8]} 20... Nc5 {[%clk 0:02:06.3]} 21.
Rfd1 {[%clk 0:01:54.1]} 21... a6 {[%clk 0:01:37.5]} 22. Nf3 {[%clk 0:01:17]}
22... Rxd2 {[%clk 0:01:30.1]} 23. Rxd2 {[%clk 0:01:17.8]} 23... Ne4 {[%clk
0:01:26.1]} 24. Re2 {[%clk 0:01:05.8]} 24... Bxb2 {[%clk 0:01:20.7]} 25. Rxb2
{[%clk 0:01:06.7]} 25... Qg7 {[%clk 0:01:08.3]} 26. Rb1 {[%clk 0:01:02.5]} 26...
g5 {[%clk 0:01:05]} 27. Qh5 {[%clk 0:01:00.2]} 27... Rd8 {[%clk 0:01:04.5]} 28.
h4 {[%clk 0:00:56.8]} 28... h6 {[%clk 0:01:01.7]} 29. hxg5 {[%clk 0:00:56.2]}
29... hxg5 {[%clk 0:01:01.2]} 30. Re1 {[%clk 0:00:56]} 30... g4 {[%clk
0:00:55.2]} 31. Rxe4 {[%clk 0:00:42.3]} 31... gxf3 {[%clk 0:00:49.2]} 32. Qxf3
{[%clk 0:00:35.4]} 32... fxe4 {[%clk 0:00:49.2]} 33. Qxe4 {[%clk 0:00:33.3]}
33... Rd1+ {[%clk 0:00:48.2]} 0-1

[Event "*** Titled Tuesday Blitz"]
[Site "Chess.com"]
[Date "2020.11.10"]
[Round "11"]
[White "Bigfish1995"]
[Black "Oleksandr_Bortnyk"]
[Result "1-0"]
[WhiteElo "2986"]
[BlackElo "2909"]
[TimeControl "180+1"]
[EndTime "12:11:45 PST"]
[Termination "Bigfish1995 won on time"]

1. e4 {[%clk 0:03:00.9]} 1... Nf6 {[%clk 0:02:55.1]} 2. e5 {[%clk 0:02:56.5]}
2... Nd5 {[%clk 0:02:55]} 3. d4 {[%clk 0:02:57.1]} 3... d6 {[%clk 0:02:55.1]} 4.
c4 {[%clk 0:02:57.6]} 4... Nb6 {[%clk 0:02:55.6]} 5. f4 {[%clk 0:02:58.4]} 5...
Bf5 {[%clk 0:02:55.2]} 6. Be2 {[%clk 0:02:56]} 6... dxe5 {[%clk 0:02:47.7]} 7.
fxe5 {[%clk 0:02:56.1]} 7... c5 {[%clk 0:02:48.3]} 8. d5 {[%clk 0:02:54.1]} 8...
e6 {[%clk 0:02:48.6]} 9. Nc3 {[%clk 0:02:50.7]} 9... Qh4+ {[%clk 0:02:18.6]} 10.
g3 {[%clk 0:02:50.9]} 10... Qd4 {[%clk 0:02:19.5]} 11. Qb3 {[%clk 0:02:18.9]}
11... Qxe5 {[%clk 0:01:34.6]} 12. Nf3 {[%clk 0:02:18.8]} 12... Qc7 {[%clk
0:01:18.4]} 13. Bf4 {[%clk 0:02:18.3]} 13... Qc8 {[%clk 0:01:15.3]} 14. Nh4
{[%clk 0:02:02.3]} 14... Bh3 {[%clk 0:01:11.3]} 15. O-O-O {[%clk 0:01:52]} 15...
Be7 {[%clk 0:01:09.1]} 16. Nb5 {[%clk 0:01:52]} 16... O-O {[%clk 0:00:57]} 17.
g4 {[%clk 0:01:52.3]} 17... e5 {[%clk 0:00:47.7]} 18. Nf5 {[%clk 0:01:48.4]}
18... Bf6 {[%clk 0:00:41.9]} 19. Bxe5 {[%clk 0:01:48.1]} 19... Bg5+ {[%clk
0:00:31.9]} 20. Kb1 {[%clk 0:01:47]} 20... Qe8 {[%clk 0:00:30.6]} 21. Bxg7
{[%clk 0:01:42.9]} 21... Qxe2 {[%clk 0:00:29.3]} 22. Qxh3 {[%clk 0:01:42.8]}
22... Re8 {[%clk 0:00:26.1]} 23. Nbd6 {[%clk 0:01:35.5]} 23... N8d7 {[%clk
0:00:17.5]} 24. Bc3 {[%clk 0:01:22]} 24... Nxc4 {[%clk 0:00:14.4]} 25. Rhe1
{[%clk 0:01:15.6]} 25... Re3 {[%clk 0:00:01.6]} 26. Qh5 {[%clk 0:01:07.4]} 26...
Nd2+ {[%clk 0:00:01.3]} 27. Bxd2 {[%clk 0:01:01.7]} 27... Qd3+ {[%clk
0:00:01.7]} 28. Ka1 {[%clk 0:00:59.5]} 1-0

[Event "*** Titled Tuesday Blitz"]
[Site "Chess.com"]
[Date "2020.11.10"]
[Round "11"]
[White "TokChess"]
[Black "Hasangatin_Ramil"]
[Result "1-0"]
[WhiteElo "2468"]
[BlackElo "2551"]
[TimeControl "180+1"]
[EndTime "12:11:47 PST"]
[Termination "TokChess won by resignation"]

1. Nf3 {[%clk 0:02:52.7]} 1... d5 {[%clk 0:02:58.9]} 2. g3 {[%clk 0:02:52.8]}
2... Bf5 {[%clk 0:02:58]} 3. Bg2 {[%clk 0:02:52.6]} 3... e6 {[%clk 0:02:58.2]}
4. O-O {[%clk 0:02:52.6]} 4... Nf6 {[%clk 0:02:58.4]} 5. d4 {[%clk 0:02:52.7]}
5... Be7 {[%clk 0:02:56.6]} 6. c4 {[%clk 0:02:51.6]} 6... c6 {[%clk 0:02:56.2]}
7. Qb3 {[%clk 0:02:47.5]} 7... Qb6 {[%clk 0:02:55.3]} 8. c5 {[%clk 0:02:47.5]}
8... Qa6 {[%clk 0:02:54.5]} 9. Bf4 {[%clk 0:02:46.4]} 9... b6 {[%clk 0:02:50.1]}
10. cxb6 {[%clk 0:02:44.5]} 10... axb6 {[%clk 0:02:49.8]} 11. Rc1 {[%clk
0:02:33.7]} 11... c5 {[%clk 0:02:44.9]} 12. dxc5 {[%clk 0:02:29.2]} 12... Bxc5
{[%clk 0:02:37.5]} 13. Bxb8 {[%clk 0:02:24.9]} 13... Bxf2+ {[%clk 0:02:30.9]}
14. Kxf2 {[%clk 0:02:21.4]} 14... Ng4+ {[%clk 0:02:27]} 15. Kg1 {[%clk 0:01:39]}
15... Rxb8 {[%clk 0:02:27.9]} 16. Nd4 {[%clk 0:01:17.6]} 16... Bxb1 {[%clk
0:02:24.3]} 17. Raxb1 {[%clk 0:01:14.8]} 17... O-O {[%clk 0:02:24.8]} 18. Nc6
{[%clk 0:01:08.9]} 18... Qxe2 {[%clk 0:02:20.4]} 19. Nxb8 {[%clk 0:01:01.9]}
19... Qf2+ {[%clk 0:02:18.6]} 20. Kh1 {[%clk 0:01:02.2]} 20... Qd4 {[%clk
0:02:18.2]} 21. Rf1 {[%clk 0:00:57]} 21... Rxb8 {[%clk 0:02:16.2]} 22. Qf3
{[%clk 0:00:53.3]} 22... f5 {[%clk 0:02:11.3]} 23. Rbe1 {[%clk 0:00:48.2]} 23...
Re8 {[%clk 0:02:01.9]} 24. h3 {[%clk 0:00:43.7]} 24... Nf6 {[%clk 0:02:00.1]}
25. Qe3 {[%clk 0:00:37]} 25... Qxe3 {[%clk 0:01:58.2]} 26. Rxe3 {[%clk
0:00:36.9]} 26... g6 {[%clk 0:01:58.2]} 27. Rc1 {[%clk 0:00:36.4]} 27... d4
{[%clk 0:01:57.7]} 28. Re5 {[%clk 0:00:35.6]} 28... Nd7 {[%clk 0:01:52.7]} 29.
Rb5 {[%clk 0:00:31.1]} 29... e5 {[%clk 0:01:48.9]} 30. Rc7 {[%clk 0:00:31]}
30... Nc5 {[%clk 0:01:47.4]} 31. Rxb6 {[%clk 0:00:25.5]} 31... Ne4 {[%clk
0:01:31.6]} 32. Kh2 {[%clk 0:00:13.9]} 32... d3 {[%clk 0:01:24.7]} 33. Rbb7
{[%clk 0:00:11.6]} 33... d2 {[%clk 0:01:23.2]} 34. Rg7+ {[%clk 0:00:11.1]} 34...
Kh8 {[%clk 0:01:22.8]} 35. Rxh7+ {[%clk 0:00:10.9]} 35... Kg8 {[%clk 0:01:22.9]}
36. Rhd7 {[%clk 0:00:11]} 1-0

[Event "*** Titled Tuesday Blitz"]
[Site "Chess.com"]
[Date "2020.11.10"]
[Round "11"]
[White "Neftegor"]
[Black "Nuvas"]
[Result "0-1"]
[WhiteElo "2451"]
[BlackElo "2368"]
[TimeControl "180+1"]
[EndTime "12:12:03 PST"]
[Termination "Nuvas won by resignation"]

1. d4 {[%clk 0:03:00.9]} 1... Nf6 {[%clk 0:02:58.3]} 2. c4 {[%clk 0:03:00.2]}
2... e6 {[%clk 0:02:58.9]} 3. Nc3 {[%clk 0:02:59.5]} 3... Bb4 {[%clk 0:02:59]}
4. e3 {[%clk 0:02:59.7]} 4... d5 {[%clk 0:02:58.5]} 5. cxd5 {[%clk 0:02:58.5]}
5... Nxd5 {[%clk 0:02:53.9]} 6. Bd2 {[%clk 0:02:53.7]} 6... O-O {[%clk
0:02:44.8]} 7. Nf3 {[%clk 0:02:49.3]} 7... c5 {[%clk 0:02:44.7]} 8. a3 {[%clk
0:02:44.8]} 8... cxd4 {[%clk 0:02:35.5]} 9. axb4 {[%clk 0:02:41]} 9... dxc3
{[%clk 0:02:35.8]} 10. bxc3 {[%clk 0:02:41.2]} 10... Nc6 {[%clk 0:02:34.8]} 11.
b5 {[%clk 0:02:40.5]} 11... Nce7 {[%clk 0:02:31.7]} 12. c4 {[%clk 0:02:40.7]}
12... Nb6 {[%clk 0:02:31.1]} 13. Bb4 {[%clk 0:02:39]} 13... Bd7 {[%clk
0:02:08.7]} 14. Ne5 {[%clk 0:02:23.2]} 14... Re8 {[%clk 0:02:08.5]} 15. e4
{[%clk 0:02:16.2]} 15... Ng6 {[%clk 0:02:03.7]} 16. Nxd7 {[%clk 0:02:10.6]}
16... Nxd7 {[%clk 0:02:04.1]} 17. Qd4 {[%clk 0:02:01.5]} 17... Nde5 {[%clk
0:01:57.6]} 18. Qc3 {[%clk 0:01:46]} 18... Qf6 {[%clk 0:01:28.1]} 19. Rd1 {[%clk
0:00:46.6]} 19... Red8 {[%clk 0:01:24.7]} 20. Bd6 {[%clk 0:00:31.4]} 20... Qf4
{[%clk 0:01:15.6]} 21. Qe3 {[%clk 0:00:21.2]} 21... Rxd6 {[%clk 0:00:53]} 22.
Rxd6 {[%clk 0:00:17.9]} 22... Nf3+ {[%clk 0:00:53.3]} 23. gxf3 {[%clk
0:00:16.5]} 23... Qxd6 {[%clk 0:00:53.7]} 24. c5 {[%clk 0:00:15.7]} 24... Qe5
{[%clk 0:00:52.1]} 25. Be2 {[%clk 0:00:15.3]} 25... Qa1+ {[%clk 0:00:50]} 26.
Bd1 {[%clk 0:00:15.5]} 26... Qa5+ {[%clk 0:00:50.5]} 27. Kf1 {[%clk 0:00:14]}
27... Qxb5+ {[%clk 0:00:49.6]} 28. Be2 {[%clk 0:00:14.3]} 28... Qb1+ {[%clk
0:00:41.8]} 29. Kg2 {[%clk 0:00:14]} 29... Nh4+ {[%clk 0:00:42.4]} 30. Kh3
{[%clk 0:00:13.6]} 30... Qxh1 {[%clk 0:00:43]} 0-1

[Event "*** Titled Tuesday Blitz"]
[Site "Chess.com"]
[Date "2020.11.10"]
[Round "11"]
[White "tylityli"]
[Black "AniJak"]
[Result "1/2-1/2"]
[WhiteElo "2250"]
[BlackElo "2376"]
[TimeControl "180+1"]
[EndTime "12:12:03 PST"]
[Termination "Game drawn by repetition"]

1. d4 {[%clk 0:02:47.1]} 1... d5 {[%clk 0:02:59.3]} 2. c4 {[%clk 0:02:46.9]}
2... c6 {[%clk 0:02:59.5]} 3. cxd5 {[%clk 0:02:46.4]} 3... cxd5 {[%clk
0:02:59.1]} 4. Bf4 {[%clk 0:02:46.2]} 4... Nc6 {[%clk 0:02:58.6]} 5. e3 {[%clk
0:02:46.4]} 5... a6 {[%clk 0:02:58.7]} 6. Nc3 {[%clk 0:02:46]} 6... Nf6 {[%clk
0:02:58.2]} 7. Bd3 {[%clk 0:02:43.6]} 7... g6 {[%clk 0:02:57.2]} 8. Nf3 {[%clk
0:02:42.5]} 8... Bf5 {[%clk 0:02:56.6]} 9. O-O {[%clk 0:02:41.2]} 9... Bg7
{[%clk 0:02:55.7]} 10. Bxf5 {[%clk 0:02:39.3]} 10... gxf5 {[%clk 0:02:55.4]} 11.
Ne5 {[%clk 0:02:39]} 11... O-O {[%clk 0:02:52]} 12. Rc1 {[%clk 0:02:37.7]} 12...
Rc8 {[%clk 0:02:46.8]} 13. a3 {[%clk 0:02:36.6]} 13... e6 {[%clk 0:02:45.9]} 14.
f3 {[%clk 0:02:35.4]} 14... Kh8 {[%clk 0:02:43.2]} 15. Qa4 {[%clk 0:02:05.7]}
15... Nxe5 {[%clk 0:02:30.6]} 16. Bxe5 {[%clk 0:02:03.7]} 16... Nh5 {[%clk
0:02:25.5]} 17. Bxg7+ {[%clk 0:02:02]} 17... Nxg7 {[%clk 0:02:26.4]} 18. Qb4
{[%clk 0:01:52.1]} 18... b5 {[%clk 0:02:18.9]} 19. a4 {[%clk 0:01:47.5]} 19...
Rc4 {[%clk 0:02:18.5]} 20. Qb3 {[%clk 0:01:46.9]} 20... bxa4 {[%clk 0:02:11.5]}
21. Nxa4 {[%clk 0:01:44.8]} 21... Qb8 {[%clk 0:02:10.5]} 22. Qxb8 {[%clk
0:01:34.8]} 22... Rxb8 {[%clk 0:02:11.4]} 23. Rxc4 {[%clk 0:01:34.9]} 23... dxc4
{[%clk 0:02:11.8]} 24. Rc1 {[%clk 0:01:34.5]} 24... Rb4 {[%clk 0:02:04.7]} 25.
Nc5 {[%clk 0:01:33.3]} 25... Rxb2 {[%clk 0:01:49.9]} 26. Rxc4 {[%clk 0:01:29.5]}
26... a5 {[%clk 0:01:30.8]} 27. Nb7 {[%clk 0:01:15.8]} 27... Rxb7 {[%clk
0:01:29.9]} 28. Rc8+ {[%clk 0:01:15.3]} 28... Ne8 {[%clk 0:01:30.5]} 29. Rxe8+
{[%clk 0:01:14.9]} 29... Kg7 {[%clk 0:01:31.4]} 30. Ra8 {[%clk 0:01:14.9]} 30...
Rb1+ {[%clk 0:01:31.1]} 31. Kf2 {[%clk 0:01:14.4]} 31... Ra1 {[%clk 0:01:32]}
32. Kg3 {[%clk 0:01:14.7]} 32... a4 {[%clk 0:01:30.8]} 33. h4 {[%clk 0:01:05]}
33... Ra2 {[%clk 0:01:29.9]} 34. Ra7 {[%clk 0:01:01.6]} 34... Kf6 {[%clk
0:01:28.6]} 35. Kf4 {[%clk 0:00:51.9]} 35... h5 {[%clk 0:01:06.2]} 36. Ra8
{[%clk 0:00:49.1]} 36... a3 {[%clk 0:00:59.5]} 37. g3 {[%clk 0:00:46.4]} 37...
Ra1 {[%clk 0:00:58.9]} 38. Ra7 {[%clk 0:00:44.8]} 38... a2 {[%clk 0:00:58.9]}
39. Ra6 {[%clk 0:00:42.7]} 39... Kg7 {[%clk 0:00:43.1]} 40. Ra7 {[%clk
0:00:40.7]} 40... Kg6 {[%clk 0:00:42.5]} 41. Ra6 {[%clk 0:00:40.5]} 41... Kg7
{[%clk 0:00:42.9]} 42. Ra7 {[%clk 0:00:40.5]} 42... Kg6 {[%clk 0:00:43.4]} 43.
Ra6 {[%clk 0:00:40.8]} 43... Kg7 {[%clk 0:00:43.8]} 1/2-1/2

[Event "*** Titled Tuesday Blitz"]
[Site "Chess.com"]
[Date "2020.11.10"]
[Round "11"]
[White "KacperPolOK"]
[Black "FMalexhdez"]
[Result "0-1"]
[WhiteElo "2405"]
[BlackElo "2274"]
[TimeControl "180+1"]
[EndTime "12:12:11 PST"]
[Termination "FMalexhdez won by resignation"]

1. e4 {[%clk 0:03:00.9]} 1... c5 {[%clk 0:02:59.2]} 2. Nc3 {[%clk 0:02:58.1]}
2... d6 {[%clk 0:02:58.3]} 3. f4 {[%clk 0:02:57.2]} 3... Nc6 {[%clk 0:02:58.2]}
4. Bb5 {[%clk 0:02:55.8]} 4... Bd7 {[%clk 0:02:54.2]} 5. Nf3 {[%clk 0:02:54.6]}
5... Nd4 {[%clk 0:02:46.3]} 6. Nxd4 {[%clk 0:02:52.4]} 6... cxd4 {[%clk
0:02:46.3]} 7. Bxd7+ {[%clk 0:02:52.1]} 7... Qxd7 {[%clk 0:02:46.1]} 8. Ne2
{[%clk 0:02:52.2]} 8... e5 {[%clk 0:02:43]} 9. d3 {[%clk 0:02:47.7]} 9... g6
{[%clk 0:02:38.6]} 10. O-O {[%clk 0:02:43]} 10... Bg7 {[%clk 0:02:36.1]} 11. c3
{[%clk 0:02:38.1]} 11... dxc3 {[%clk 0:02:33.9]} 12. Nxc3 {[%clk 0:02:36.4]}
12... Ne7 {[%clk 0:02:32.3]} 13. Kh1 {[%clk 0:02:34.7]} 13... O-O {[%clk
0:02:32]} 14. Be3 {[%clk 0:02:06.5]} 14... f5 {[%clk 0:02:27]} 15. d4 {[%clk
0:01:53.1]} 15... fxe4 {[%clk 0:02:17.6]} 16. dxe5 {[%clk 0:01:50.2]} 16... Nf5
{[%clk 0:02:13.8]} 17. Qd5+ {[%clk 0:01:30.4]} 17... Qf7 {[%clk 0:02:04.6]} 18.
Qxe4 {[%clk 0:01:23.4]} 18... dxe5 {[%clk 0:01:55.8]} 19. fxe5 {[%clk
0:01:21.3]} 19... Rae8 {[%clk 0:01:32]} 20. g4 {[%clk 0:01:18.1]} 20... Rxe5
{[%clk 0:01:31.6]} 21. Qg2 {[%clk 0:01:05.5]} 21... Nxe3 {[%clk 0:01:27.2]} 22.
Rxf7 {[%clk 0:01:05]} 22... Nxg2 {[%clk 0:01:27]} 23. Rxf8+ {[%clk 0:01:04.3]}
23... Kxf8 {[%clk 0:01:10.8]} 24. Kxg2 {[%clk 0:01:05.2]} 24... Rg5 {[%clk
0:01:03]} 25. Kf3 {[%clk 0:01:03.8]} 25... Bxc3 {[%clk 0:01:02.3]} 26. bxc3
{[%clk 0:01:02.8]} 26... Rc5 {[%clk 0:01:02.2]} 27. Rc1 {[%clk 0:01:01.3]} 27...
Ke7 {[%clk 0:00:58]} 28. Ke3 {[%clk 0:00:59.1]} 28... b5 {[%clk 0:00:49.8]} 29.
h3 {[%clk 0:00:58.3]} 29... Kf6 {[%clk 0:00:49.1]} 30. Kd4 {[%clk 0:00:57.5]}
30... Rc4+ {[%clk 0:00:45.2]} 31. Kd5 {[%clk 0:00:56.5]} 31... Kg5 {[%clk
0:00:45.1]} 32. a4 {[%clk 0:00:32.7]} 32... Rxa4 {[%clk 0:00:42.4]} 33. Kc5
{[%clk 0:00:32.1]} 33... a6 {[%clk 0:00:37.6]} 34. Kb6 {[%clk 0:00:26]} 34...
Kh4 {[%clk 0:00:34.6]} 0-1

[Event "*** Titled Tuesday Blitz"]
[Site "Chess.com"]
[Date "2020.11.10"]
[Round "11"]
[White "MVM2008"]
[Black "zurzan"]
[Result "1-0"]
[WhiteElo "2185"]
[BlackElo "2056"]
[TimeControl "180+1"]
[EndTime "12:12:13 PST"]
[Termination "MVM2008 won by resignation"]

1. b3 {[%clk 0:03:00.9]} 1... d6 {[%clk 0:02:59.1]} 2. Bb2 {[%clk 0:03:00.4]}
2... e5 {[%clk 0:02:59.3]} 3. c4 {[%clk 0:02:58.9]} 3... Nc6 {[%clk 0:02:57.8]}
4. g3 {[%clk 0:02:58]} 4... f5 {[%clk 0:02:57.1]} 5. Bg2 {[%clk 0:02:58.2]} 5...
Nf6 {[%clk 0:02:57.1]} 6. e3 {[%clk 0:02:58.3]} 6... Be7 {[%clk 0:02:55.9]} 7.
d3 {[%clk 0:02:58.6]} 7... O-O {[%clk 0:02:55.8]} 8. Nd2 {[%clk 0:02:58.7]} 8...
a5 {[%clk 0:02:47.6]} 9. a3 {[%clk 0:02:57.3]} 9... Qe8 {[%clk 0:02:42.7]} 10.
Ne2 {[%clk 0:02:52.3]} 10... Kh8 {[%clk 0:02:42]} 11. O-O {[%clk 0:02:52]} 11...
Be6 {[%clk 0:02:41.8]} 12. d4 {[%clk 0:02:46.9]} 12... exd4 {[%clk 0:02:38.7]}
13. exd4 {[%clk 0:02:46.5]} 13... Bf7 {[%clk 0:02:34]} 14. Nf4 {[%clk
0:02:45.5]} 14... g5 {[%clk 0:02:28.6]} 15. Nd3 {[%clk 0:02:44.8]} 15... h6
{[%clk 0:02:20]} 16. d5 {[%clk 0:02:44]} 16... Nd8 {[%clk 0:02:10.4]} 17. f4
{[%clk 0:02:43.8]} 17... Bh5 {[%clk 0:01:55.2]} 18. Qe1 {[%clk 0:02:33]} 18...
g4 {[%clk 0:01:43.2]} 19. Ne5 {[%clk 0:02:32.4]} 19... Nf7 {[%clk 0:01:28]} 20.
Nxf7+ {[%clk 0:02:28]} 20... Qxf7 {[%clk 0:01:26.8]} 21. Qe2 {[%clk 0:02:26.2]}
21... Rae8 {[%clk 0:01:24.8]} 22. Rae1 {[%clk 0:02:25.6]} 22... Kg7 {[%clk
0:01:20]} 23. Qd3 {[%clk 0:02:16.4]} 23... Bg6 {[%clk 0:01:19.7]} 24. Re6 {[%clk
0:02:15.5]} 24... Kh7 {[%clk 0:01:11.3]} 25. Rfe1 {[%clk 0:02:11.1]} 25... Ng8
{[%clk 0:01:10.8]} 26. Qc3 {[%clk 0:02:08.3]} 26... Bf6 {[%clk 0:01:09.7]} 27.
Qc2 {[%clk 0:02:02.7]} 27... Bxb2 {[%clk 0:01:08.8]} 28. Qxb2 {[%clk 0:02:03.6]}
28... Rxe6 {[%clk 0:01:07.6]} 29. Rxe6 {[%clk 0:01:57.7]} 29... Re8 {[%clk
0:01:03.6]} 30. Qd4 {[%clk 0:01:29]} 30... Rxe6 {[%clk 0:00:40.9]} 31. dxe6
{[%clk 0:01:28.9]} 31... Qe7 {[%clk 0:00:39.8]} 32. Bxb7 {[%clk 0:01:19.7]}
32... Qxe6 {[%clk 0:00:37]} 33. Bd5 {[%clk 0:01:18.8]} 33... Qe1+ {[%clk
0:00:36.7]} 34. Nf1 {[%clk 0:01:13.5]} 34... Nf6 {[%clk 0:00:37.6]} 35. Qxf6
{[%clk 0:01:11.3]} 35... Qe8 {[%clk 0:00:33.7]} 36. Qe6 {[%clk 0:01:08.3]} 36...
Qd8 {[%clk 0:00:30.8]} 37. Bc6 {[%clk 0:01:05.1]} 37... h5 {[%clk 0:00:29.8]}
38. Qd7+ {[%clk 0:01:04.8]} 38... Qxd7 {[%clk 0:00:28.7]} 39. Bxd7 {[%clk
0:01:05.7]} 39... Kg7 {[%clk 0:00:26.7]} 40. b4 {[%clk 0:01:05.7]} 40... axb4
{[%clk 0:00:26.2]} 41. axb4 {[%clk 0:01:06.4]} 41... Bf7 {[%clk 0:00:26.1]} 42.
c5 {[%clk 0:01:04.3]} 42... Bc4 {[%clk 0:00:24]} 43. Ne3 {[%clk 0:01:02.5]}
43... Ba6 {[%clk 0:00:22.7]} 44. cxd6 {[%clk 0:01:01.7]} 44... cxd6 {[%clk
0:00:22.9]} 45. b5 {[%clk 0:01:01.5]} 45... Bb7 {[%clk 0:00:22.6]} 46. Nxf5+
{[%clk 0:01:01.5]} 46... Kf6 {[%clk 0:00:22]} 47. Nxd6 {[%clk 0:01:02]} 1-0